Cogmind - Beta 13 @@@ ROGUE MODE // 2024.07.31 @ 19:29:38 Player: whimsical Result: Destroyed by G-34 Mercenary with Small Laser Performance ------------- Evolutions (1) 500 Regions Visited (4) 800 Robots Destroyed (38) 190 Value Destroyed (799) 799 Prototype IDs (1) 20 Alien Tech Used (0) 0 Bonus (198) 198 TOTAL SCORE: 2507 Bonus ------- High Alert Combat Kills 11 Follower Combat Kills 187 Cogmind --------- Core Integrity 0/400 Matter 290/300 Energy 280/280 System Corruption 0% Temperature Cool (6) Movement Walking (120) Location -9/Storage Parts ------- > --- POWER (1) -------- Cooled Ion Engine > --- PROPULSION (4) --- Aluminum Leg Improved Aluminum Leg > --- UTILITY (2) ------ Signal Interpreter ECM Suite > --- WEAPON (2) ------- Small Laser > --- INVENTORY (5) ---- Medium Matter Pod (72) Improved Targeting Computer Improved Targeting Computer Tractor Beam Peak State ------------ > --- POWER ------------ Cooled Ion Engine > --- PROPULSION ------- Light Treads Aluminum Leg Aluminum Leg Aluminum Leg > --- UTILITY ---------- Signal Interpreter ECM Suite > --- WEAPON ----------- Light Assault Rifle > --- INVENTORY -------- Tractor Beam Grenade Launcher Mining Laser [Rating: 10] Favorites ----------- Power Light Ion Engine Engine Light Ion Engine Propulsion Aluminum Leg Treads Light Treads Leg Aluminum Leg Utility Signal Interpreter Device ECM Suite Processor Signal Interpreter Weapon Light Assault Rifle Energy Gun Small Laser Ballistic Gun Light Assault Rifle Launcher Grenade Launcher Special Weapon Mining Laser Build | -11 -10 -10 -9 -9 ------- Run | Yrd Mat Min Mat Sto Slots Evolved 2 | . . . 2 . Power . | . . . . . Propulsion 2 | . . . 2 . Utility . | . . . . . Weapon . | . . . . . Parts Attached 28 | 5 2 4 7 10 Power 4 | 1 . 1 1 1 Engine 4 | 1 . 1 1 1 Core . | . . . . . Reactor . | . . . . . Propulsion 9 | 2 . . 1 6 Treads 1 | . . . . 1 Leg 8 | 2 . . 1 5 Wheel . | . . . . . Hover . | . . . . . Flight . | . . . . . Utility 4 | . 1 2 1 . Device 3 | . 1 1 1 . Storage . | . . . . . Processor 1 | . . 1 . . Hackware . | . . . . . Protection . | . . . . . Artifact . | . . . . . Weapon 11 | 2 1 1 4 3 Energy Gun 4 | 1 . . 2 1 Energy Cannon . | . . . . . Ballistic Gun 2 | 1 . . 1 . Ballistic Cannon . | . . . . . Launcher 3 | . 1 . 1 1 Special Weapon 2 | . . 1 . 1 Impact Weapon . | . . . . . Slashing Weapon . | . . . . . Piercing Weapon . | . . . . . Special Melee Weapon . | . . . . . Unidentified Prototypes 1 | . . . . 1 Parts Lost 16 | . 1 1 6 8 Power 3 | . . 1 2 . Propulsion 6 | . . . 2 4 Utility 1 | . . . 1 . Weapon 6 | . 1 . 1 4 Highest Loss Streak 3 | . 1 1 3 2 To Critical Strikes . | . . . . . Average Slot Usage (%) 72 | . 81 95 51 63 Engine 11 | . 14 13 6 10 Treads 1 | . . . . 3 Leg 18 | . 28 28 9 14 Device 10 | . 11 14 3 11 Processor 9 | . . 9 11 11 Energy Gun 4 | . 9 . 7 4 Ballistic Gun 8 | . 14 14 7 3 Launcher 2 | . 4 . 4 2 Special Weapon 4 | . . 13 1 1 Naked Turns . | . . . . . Heaviest Build 13 | 5 8 6 9 13 Greatest Support 30 | 20 20 20 20 30 Greatest Overweight (x) 3 | 1 . . 2 3 Average Overweight (x) . | . . . . . Largest Inventory Capacity 5 | 5 5 5 5 5 Average Capacity 5 | 5 5 5 5 5 Most Carried 4 | . 3 4 4 4 Average Carried 2 | . 1 2 3 2 Final Capacity 5 | 5 5 5 5 5 Final Carried 4 | . 2 4 3 4 Class Distribution -------------------- 94% | Mutant 5% | Scavenger-Mutant Dominant Class ---------------- Mutant | -10/Materials Mutant | -10/Mines Mutant | -9/Materials Mutant | -9/Storage Resources | -11 -10 -10 -9 -9 ----------- Run | Yrd Mat Min Mat Sto Matter Collected 815 | 178 12 93 69 463 Remotely 36 | . 12 24 . . Salvage Created 711 | . 107 56 231 317 Parts 67 | . 9 9 26 23 Haulers Intercepted 1 | . 1 . . . Recyclers Shooed 4 | . 1 . 1 2 Parts Field Recycled . | . . . . . Retrieved Matter . | . . . . . Parts Self-Destructed . | . . . . . Prevented . | . . . . . Kills | -11 -10 -10 -9 -9 ------- Run | Yrd Mat Min Mat Sto Combat Hostiles Destroyed 23 | . 3 4 8 8 Guns 11 | . 1 4 2 4 Cannons 1 | . . . . 1 AOE 11 | . 2 . 6 3 Classes Destroyed 9 | . 4 . 4 1 Worker 7 | . . . 2 5 Builder 1 | . 1 . . . Hauler 1 | . 1 . . . Recycler 1 | . 1 . . . Operator 1 | . . . 1 . Watcher 4 | . . . 3 1 Swarmer 11 | . 3 4 4 . Grunt 4 | . . . . 4 Sentry 8 | . . . 4 4 Best Kill Streak 10 | . 3 3 10 6 Combat Bots Only 5 | . 2 3 5 2 Max Kills in Single Turn 4 | . 2 1 4 2 Gunslinging . | . . . . . Exploded 3 | . 2 . 3 1 Melee . | . . . . . Uniques/NPCs Destroyed . | . . . . . Combat | -11 -10 -10 -9 -9 -------- Run | Yrd Mat Min Mat Sto Hostile Shots Fired 193 | . 48 12 38 95 Missed 53 | . 16 1 8 28 Damage Taken 1816 | . 313 96 370 1037 Core 500 | . 74 18 92 316 Absorbed by Shields . | . . . . . Core Remaining (%) 81 | 100 . 63 . . Volleys Fired 91 | . 19 12 22 38 Largest 2 | . 2 2 2 2 Hottest 120 | . 60 120 73 100 Shots Fired 121 | . 27 13 37 44 Gun 80 | . 22 6 26 26 Cannon . | . . . . . Launcher 30 | . 5 . 11 14 Special 11 | . . 7 . 4 Kinetic 50 | . 19 6 10 15 Thermal 41 | . 3 7 16 15 Explosive 30 | . 5 . 11 14 Electromagnetic . | . . . . . Robot Hit Streak 9 | . 4 1 4 9 Robot Miss Streak 5 | . 5 2 3 2 Penetration Max . | . . . . . Secondary Targets 2 | . . . . 2 Max Gunslinging Chain 1 | . . . . 1 Shots Hit Robots 61 | . 8 2 17 34 Core Hits 75 | . 12 4 25 34 Critical Kills 1 | . . . . 1 Critical Parts Destroyed . | . . . . . Critical Strikes 1 | . . . . 1 Destroy 1 | . . . . 1 Melee Attacks . | . . . . . Impact . | . . . . . Slashing . | . . . . . Piercing . | . . . . . Sneak Attacks . | . . . . . Combat Hostiles . | . . . . . Follow-up Attacks . | . . . . . Damage Inflicted 2388 | . 468 43 901 976 Guns 420 | . 65 39 121 195 Cannons . | . . . . . Explosions 1860 | . 403 . 780 677 Melee . | . . . . . Ramming 12 | . . 4 . 8 Kinetic 245 | . 65 39 35 106 Thermal 271 | . . . 86 185 Explosive 1860 | . 403 . 780 677 Electromagnetic . | . . . . . Impact . | . . . . . Slashing . | . . . . . Piercing . | . . . . . Highest Corruption . | . . . . . Average Corruption . | . . . . . Corruption Purged . | . . . . . Corruption Blocked . | . . . . . Overload Shots . | . . . . . Overflow Damage 82 | . . . 33 49 Projectiles . | . . . . . Explosions 82 | . . . 33 49 Melee . | . . . . . Knockbacks . | . . . . . Impact . | . . . . . Kinetic . | . . . . . Secondary . | . . . . . Self-Inflicted Damage 156 | . 11 . 26 119 Shots 7 | . 1 . 2 4 Rammed . | . . . . . Targets Rammed 3 | . . 1 . 2 Kicked 3 | . . 1 . 2 Crushed . | . . . . . Highest Temperature 64 | . 20 64 28 25 Average Temperature 14 | . 12 25 7 10 Received Heat Transfer 567 | . 66 . 99 402 Siege Activations . | . . . . . Robots Corrupted . | . . . . . Combat Hostiles . | . . . . . Parts Fried . | . . . . . Impact Corruptions . | . . . . . Robots Melted . | . . . . . Combat Hostiles . | . . . . . Parts Melted 1 | . . . . 1 Heat Transferred 541 | . . . 200 341 Parts Sabotaged . | . . . . . Parts Stolen . | . . . . . Parts Stripped . | . . . . . Power Chain Reactions . | . . . . . Alert | -11 -10 -10 -9 -9 ------- Run | Yrd Mat Min Mat Sto Peak Influence 449 | . 128 184 374 449 Initial 157 | . . 45 . 157 Average 169 | . 32 77 190 302 Maximum Alert Level 2 | . . . 1 2 Low Security (%) 58 | 100 100 100 54 9 Level 1 35 | . . . 45 72 Level 2 6 | . . . . 17 Level 3 . | . . . . . Level 4 . | . . . . . Level 5 . | . . . . . High Security . | . . . . . Max Security . | . . . . . Squads Dispatched 3 | . . . . 3 Investigation . | . . . . . Extermination . | . . . . . Reinforcement 1 | . . . . 1 Assault 2 | . . . . 2 Garrison . | . . . . . Intercept . | . . . . . Searches Triggered . | . . . . . Construction Impeded 1 | . . . . 1 Haulers Reinforced . | . . . . . Active Scanning Responses . | . . . . . Cargo Convoy Interrupts . | . . . . . Stealth | -11 -10 -10 -9 -9 --------- Run | Yrd Mat Min Mat Sto Distress Signals 4 | . . . 2 2 Communications Jammed . | . . . . . Distress Signals . | . . . . . Times Spotted 55 | . 9 6 13 27 Peak Tracking Total 8 | . 5 3 5 8 Tactical Retreats 5 | . . . 1 4 Traps | -11 -10 -10 -9 -9 ------- Run | Yrd Mat Min Mat Sto Traps Triggered 1 | . . . 1 . Indirectly . | . . . . . Trap Hack Attempts . | . . . . . Triggered . | . . . . . Disarmed . | . . . . . Reprogrammed . | . . . . . Reused . | . . . . . Traps Extracted . | . . . . . Installed . | . . . . . Triggered . | . . . . . Machines | -11 -10 -10 -9 -9 ---------- Run | Yrd Mat Min Mat Sto Machines Disabled 8 | . 1 . 2 5 Max in Single Turn 1 | . 1 . 1 1 Machines Repaired . | . . . . . Machines Dismantled . | . . . . . Machines Sabotaged . | . . . . . Overloaded Fab Kills . | . . . . . Hacking | -11 -10 -10 -9 -9 --------- Run | Yrd Mat Min Mat Sto Machines Accessed 2 | . 1 . . 1 Terminals 1 | . 1 . . . Fabricators . | . . . . . Repair Stations . | . . . . . Recycling Units 1 | . . . . 1 Scanalyzers . | . . . . . Garrison Access . | . . . . . Total Hacks 7 | . 3 . . 4 Successful 4 | . 2 . . 2 Failed 3 | . 1 . . 2 Catastrophic . | . . . . . Database Lockouts . | . . . . . Manual . | . . . . . Terminals 3 | . 3 . . . Fabricators . | . . . . . Repair Stations . | . . . . . Recycling Units 4 | . . . . 4 Scanalyzers . | . . . . . Garrison Access . | . . . . . Terminal Hacks 2 | . 2 . . . Dispatch Records 1 | . 1 . . . Maintenance Status 1 | . 1 . . . Fabricator Hacks . | . . . . . Repair Station Hacks . | . . . . . Recycling Unit Hacks 2 | . . . . 2 Report Inventory 1 | . . . . 1 Retrieve Matter 1 | . . . . 1 Scanalyzer . | . . . . . Garrison Access Hacks . | . . . . . Unauthorized Hacks . | . . . . . Terminals . | . . . . . Fabricators . | . . . . . Repair Stations . | . . . . . Recycling Units . | . . . . . Scanalyzers . | . . . . . Garrison Access . | . . . . . Data Cores Recovered . | . . . . . Used . | . . . . . Hacking Detections 1 | . . . . 1 Full Trace Events . | . . . . . Feedback Events . | . . . . . Feedback Blocked . | . . . . . Robot Schematics Acquired . | . . . . . Robots Built . | . . . . . Authchips . | . . . . . Time . | . . . . . Total Robot Build Rating . | . . . . . Part Schematics Acquired . | . . . . . Parts Built . | . . . . . Authchips . | . . . . . Time . | . . . . . Total Part Build Rating . | . . . . . Parts Repaired . | . . . . . Time . | . . . . . Parts Recycled . | . . . . . Recycled Matter . | . . . . . Retrieved Matter . | . . . . . Retrieved Components . | . . . . . Parts Scanalyzed . | . . . . . Part Schematics Acquired . | . . . . . Parts Damaged . | . . . . . Bothacking | -11 -10 -10 -9 -9 ------------ Run | Yrd Mat Min Mat Sto Used RIF Installer . | . . . . . Robots Hacked . | . . . . . Non-combat . | . . . . . Combat . | . . . . . Robot Hacks Applied . | . . . . . Relay Couplers Released . | . . . . . Fabnet Peak Effective % . | . . . . . Robots Rewired . | . . . . . Allies Hacked . | . . . . . Hacks Repelled . | . . . . . Allies | -11 -10 -10 -9 -9 -------- Run | Yrd Mat Min Mat Sto Total Allies 3 | . . 1 . 2 Largest Group 2 | . . 1 . 2 Highest-Rated Group 62 | . . 31 . 62 Highest-Rated Ally 31 | . . 31 . 31 Total Orders . | . . . . . Ally Attacks 29 | . . 2 . 27 Total Damage 425 | . . 44 . 381 Kills 8 | . . 2 . 6 Allies Corrupted . | . . . . . Allies Melted . | . . . . . Intel | -11 -10 -10 -9 -9 ------- Run | Yrd Mat Min Mat Sto Robot Analysis Total . | . . . . . Derelict Logs Recovered . | . . . . . Drone Launches . | . . . . . Drone Recoveries . | . . . . . Exploration | -11 -10 -10 -9 -9 ------------- Run | Yrd Mat Min Mat Sto Turns Passed 1782 | 112 230 454 342 644 Spaces Moved 1303 | 91 153 340 332 387 Core 261 | 6 . . 211 44 Treads 68 | . . . . 68 Legs 974 | 85 153 340 121 275 Wheels . | . . . . . Hover . | . . . . . Flight . | . . . . . Fastest Speed 50 | 50 120 120 50 100 Average Speed 115 | 115 120 120 81 138 Slowest Speed 200 | 120 120 120 150 200 Overloaded Moves . | . . . . . Propulsion Burnouts . | . . . . . Robots Hopped . | . . . . . Cave-ins Triggered . | . . . . . Exploration Rate (%) 35 | 4 32 59 26 54 Regions Visited 4 Branch Regions 2 Pre-discovered Areas . | . . . . . Known Exits Taken 2 | . . 1 1 . Unknown Exits Taken 2 | 1 1 . . . Scrap Searched 1 | . . 1 . . Spaces Dug 6 | . . 6 . . Terrain Destroyed 218 | . 23 6 129 60 Melee . | . . . . . Projectile 6 | . . 6 . . AOE 212 | . 23 . 129 60 Terrain Rammed . | . . . . . Walls Destroyed . | . . . . . Machines Disabled . | . . . . . Actions | -11 -10 -10 -9 -9 --------- Run | Yrd Mat Min Mat Sto Total 1434 | 95 176 358 365 440 Wait 3 | . . . 3 . Move 1299 | 90 152 339 331 387 Hop . | . . . . . Pick Up 8 | . 2 2 1 3 Fast Attach 20 | 5 1 3 3 8 Attach 6 | . 1 . 3 2 Detach 2 | . 1 . 1 . Swap 2 | . . 1 1 . Drop . | . . . . . Fire 91 | . 19 12 22 38 Melee . | . . . . . Ram . | . . . . . Kick 3 | . . 1 . 2 Crush . | . . . . . Escape Stasis . | . . . . . Rewire . | . . . . . Trap . | . . . . . Miscellaneous . | . . . . . Route ------- -11/Scrapyard -10/Materials (discovered 2 exits: *Mat / [*Min]) -10/Mines -9/Materials -9/Storage History --------- Turn | Location | Event 17 | -11/Scrapyard | Discovered new exit (range 16) 113 | -11/Scrapyard | Entered Materials 220 | -10/Materials | Discovered new exit (range 8) 304 | -10/Materials | Build established: Mutant 336 | -10/Materials | Discovered new exit (range 6) 343 | -10/Materials | Entered Mines 348 | -10/Mines | Received a Mining Laser from a helpful Derelict 467 | -10/Mines | Discovered new exit (range 11) 487 | -10/Mines | Identified exit to Materials 698 | -10/Mines | Received a Rocket Launcher from a helpful Derelict 797 | -10/Mines | Entered Materials 797 | -9/Materials | Evolved 2 slots: Propulsion x2 1048 | -9/Materials | Lost 3 parts (1p1n1w) 1080 | -9/Materials | Discovered new exit (range 9) 1087 | -9/Materials | Identified exit to Storage 1139 | -9/Materials | Entered Storage 1397 | -9/Storage | Core integrity fell below 50% 1585 | -9/Storage | Met a pair of Derelict thieves 1704 | -9/Storage | Core integrity fell below 20% 1783 | -9/Storage | Destroyed by G-34 Mercenary with Small Laser Last Messages --------------- G-34 Mercenary destroyed. Mining Laser destroyed. Aluminum Leg destroyed. R-06 Scavenger collects Prototype Engine. WZ-WEU(g) heat damages Imp. Heat Sink. L-31 Rogue destroyed. Acquired 108 matter. Acquired 57 matter. Acquired Imp. Aluminum Leg. R-06 Scavenger collects Carbon-fiber Leg. Acquired Aluminum Leg. Acquired 13 matter. Acquired 92 matter. R-06 Scavenger collects Imp. Ion Engine. G-34 Mercenary destroyed. C-30 ARC bursts open, deploying its payload. G-47 Trooper unfolds itself. G-34 Mercenary unfolds itself. I-25 Savior unfolds itself. Acquired Sml. Laser. Map ----- +----------------------------------------------------+ | ????????? """ ?# ""??" #???# | | ????????# """ ?# """" #???# | | ????????# ???????# ##### | | ????????# ???????# + | | ?????????????????################## | | ?????????????????????????????### | | ?????????????????????????????#"" | | ?????????????????????????????#"Y | | ?????????????????????????????#"" | | ?????????##+?????????????????### | | ?????????? ???????????????????# | | ???????? ? ???????????????????# | | ????????? ???????""??????????# | | ?????????? ??????? ??????????# | | ??????????# #?????#+############### | | ??????????# ####### | | ??????????+ #######+### | | ??????????# #?# | | ??????????# ### | | ???######## """ / | | ???# # """ ### | | ???# # """ #######?######### | | ???# / #???????????????? | | ???# # g #???????????????? | | ???# # """ #???????????????? | | ???# @ """ #???????????????? | | ???######## """ #???????????????? | | ??????????# k #???????????????? | | ???????# ?????????????? | | ???????# ##### ####????????????? | | ???????# #???? #???????????????? | | ???????# #???? #???????????????? | | ???????# ?????+#???????????????? | | ???????# ??????????????????????? | | ???????# ??????????????????????? | | ???????? ###??????????????????????? | | ???????# ?????????????????????????? | | ???????? ?????????????????????????? | | ??????????????????????????????????? | | ??????????????????????????????????? | | ??????????????????????????????????? | | ??????????????????????????????????? | | ??????????????????????????????????? | | ??????????????????????????????????? | | ??????????????????????????????????? | | ??????????????????????????????????? | | ??????????????????????????????????? | | ??????????????????????????????????? | | ??????????????????????????????????? | | ??????????????????????????????????? | +----------------------------------------------------+ Best States ------------- Heat Dissipation 28 Energy Generation 14 Energy Capacity 280 Matter Stores 300 Matter Capacity 300 Sight Range 16 Terrain Scan Range 14 Terrain Scan Density 10 ECM Strength 1 Evasion (%) 55 Recoil Reduction 1 Item Schematics ----------------- None Robot Schematics ------------------ None Fabricated ------------ Nothing Alien Tech Used ----------------- None Achievements -------------- Loot Pinata Remodeling Challenges ------------ None Game ------ Seed CannonTimingPod Manual? 0 Play Time 00:30:53 Cumulative 4.2 hours Start 2024.07.31 @ 18:03:08 End 2024.07.31 @ 19:29:38 Sessions 1 Manual Loads 0 Difficulty Rogue Special Mode None Game No. 9 Rogue 9 Adventurer 0 Explorer 0 Win Type - Total 0 Types 0/0/0/0/0/0/0/0/0 Lore% 6 Gallery% 8 Achievement% 8 Wizard Run 0 Options --------- Layout 1 ASCII 0 Keyboard 1 Movement Vi Keybinds 0 Fullscreen 1 Font 28/SmallcapsGlow Map View 50x43 Zoom Use 0% Tactical HUD 0 Map Filters NONE Filters NONE Steam 0 RUN: eb700f9e-8534-474e-afee-b7de9d5fa798